Workbook

Sheet Лист1
A1: 130м-2 | B1: =INDIRECT("Имена!C6",TRUE) -> скв1 | D1: =MATCH(A1,INDIRECT("'"&B1&"'!$G1:$G50"),) -> 10 | E1: =ADDRESS(D1,5,1,1,B1) -> скв1!$E$10 | F1: =INDIRECT(E1,TRUE) -> 1.8
B2: =INDIRECT("Имена!C7",TRUE) -> скв2 | D2: =MATCH(A1,скв1!$G:$G,0) -> 10 | E2: =ADDRESS(D2,5,1,1,B2) -> скв2!$E$10 | F2: =INDIRECT(E2,TRUE) -> 0.3
D3: ПОИСКПОЗ(A1;'ск в1'!$G:$G;0)

Sheet Имена
C5: Имена всех листов активной книги | D5: Статус | I5: не нужные листы | K5: статусы
B6: =IF(ПРОВЕРКА,IF(ISNA(MATCH(ЛИСТ.ИМЯ,$I$6:$I$13,0)),HYPERLINK(ЛИСТ.СПИСОК&"'!A1",ЛИСТ.ИМЯ),""),"") ->  | C6: =IFERROR(HYPERLINK(MID(ЛИСТ.СПИСОК,1,SEARCH("'",ЛИСТ.СПИСОК)-1)&INDEX($B$6:$B$300,SMALL(IF(($B$6:$B$300<>"")*(COUNTIF($C$5:C5,$B$6:$B$300)=0),ROW($B$6:$B$300)-5),1))&"!A1",INDEX($B$6:$B$300,SMALL(IF(($B$6:$B$300<>"")*(COUNTIF($C$5:C5,$B$6:$B$300)=0),ROW($B$6:$B$300)-5),1))),"") -> скв1 | D6: учитывать | I6: Имена | K6: учитывать
B7: =IF(ПРОВЕРКА,IF(ISNA(MATCH(ЛИСТ.ИМЯ,$I$6:$I$13,0)),HYPERLINK(ЛИСТ.СПИСОК&"'!A1",ЛИСТ.ИМЯ),""),"") ->  | C7: =IFERROR(HYPERLINK(MID(ЛИСТ.СПИСОК,1,SEARCH("'",ЛИСТ.СПИСОК)-1)&INDEX($B$6:$B$300,SMALL(IF(($B$6:$B$300<>"")*(COUNTIF($C$5:C6,$B$6:$B$300)=0),ROW($B$6:$B$300)-5),1))&"!A1",INDEX($B$6:$B$300,SMALL(IF(($B$6:$B$300<>"")*(COUNTIF($C$5:C6,$B$6:$B$300)=0),ROW($B$6:$B$300)-5),1))),"") -> скв2 | D7: учитывать | I7: Усл | K7: не учитывать
B8: =IF(ПРОВЕРКА,IF(ISNA(MATCH(ЛИСТ.ИМЯ,$I$6:$I$13,0)),HYPERLINK(ЛИСТ.СПИСОК&"'!A1",ЛИСТ.ИМЯ),""),"") ->  | C8: =IFERROR(HYPERLINK(MID(ЛИСТ.СПИСОК,1,SEARCH("'",ЛИСТ.СПИСОК)-1)&INDEX($B$6:$B$300,SMALL(IF(($B$6:$B$300<>"")*(COUNTIF($C$5:C7,$B$6:$B$300)=0),ROW($B$6:$B$300)-5),1))&"!A1",INDEX($B$6:$B$300,SMALL(IF(($B$6:$B$300<>"")*(COUNTIF($C$5:C7,$B$6:$B$300)=0),ROW($B$6:$B$300)-5),1))),"") -> скв3 | D8: учитывать | I8: Кат
B9: =IF(ПРОВЕРКА,IF(ISNA(MATCH(ЛИСТ.ИМЯ,$I$6:$I$13,0)),HYPERLINK(ЛИСТ.СПИСОК&"'!A1",ЛИСТ.ИМЯ),""),"") ->  | C9: =IFERROR(HYPERLINK(MID(ЛИСТ.СПИСОК,1,SEARCH("'",ЛИСТ.СПИСОК)-1)&INDEX($B$6:$B$300,SMALL(IF(($B$6:$B$300<>"")*(COUNTIF($C$5:C8,$B$6:$B$300)=0),ROW($B$6:$B$300)-5),1))&"!A1",INDEX($B$6:$B$300,SMALL(IF(($B$6:$B$300<>"")*(COUNTIF($C$5:C8,$B$6:$B$300)=0),ROW($B$6:$B$300)-5),1))),"") -> скв4 | D9: учитывать | I9: лист1
B10: =IF(ПРОВЕРКА,IF(ISNA(MATCH(ЛИСТ.ИМЯ,$I$6:$I$13,0)),HYPERLINK(ЛИСТ.СПИСОК&"'!A1",ЛИСТ.ИМЯ),""),"") -> скв1 | C10: =IFERROR(HYPERLINK(MID(ЛИСТ.СПИСОК,1,SEARCH("'",ЛИСТ.СПИСОК)-1)&INDEX($B$6:$B$300,SMALL(IF(($B$6:$B$300<>"")*(COUNTIF($C$5:C9,$B$6:$B$300)=0),ROW($B$6:$B$300)-5),1))&"!A1",INDEX($B$6:$B$300,SMALL(IF(($B$6:$B$300<>"")*(COUNTIF($C$5:C9,$B$6:$B$300)=0),ROW($B$6:$B$300)-5),1))),"") -> скв5
B11: =IF(ПРОВЕРКА,IF(ISNA(MATCH(ЛИСТ.ИМЯ,$I$6:$I$13,0)),HYPERLINK(ЛИСТ.СПИСОК&"'!A1",ЛИСТ.ИМЯ),""),"") -> скв2 | C11: =IFERROR(HYPERLINK(MID(ЛИСТ.СПИСОК,1,SEARCH("'",ЛИСТ.СПИСОК)-1)&INDEX($B$6:$B$300,SMALL(IF(($B$6:$B$300<>"")*(COUNTIF($C$5:C10,$B$6:$B$300)=0),ROW($B$6:$B$300)-5),1))&"!A1",INDEX($B$6:$B$300,SMALL(IF(($B$6:$B$300<>"")*(COUNTIF($C$5:C10,$B$6:$B$300)=0),ROW($B$6:$B$300)-5),1))),"") -> 1
B12: =IF(ПРОВЕРКА,IF(ISNA(MATCH(ЛИСТ.ИМЯ,$I$6:$I$13,0)),HYPERLINK(ЛИСТ.СПИСОК&"'!A1",ЛИСТ.ИМЯ),""),"") -> скв3 | C12: =IFERROR(HYPERLINK(MID(ЛИСТ.СПИСОК,1,SEARCH("'",ЛИСТ.СПИСОК)-1)&INDEX($B$6:$B$300,SMALL(IF(($B$6:$B$300<>"")*(COUNTIF($C$5:C11,$B$6:$B$300)=0),ROW($B$6:$B$300)-5),1))&"!A1",INDEX($B$6:$B$300,SMALL(IF(($B$6:$B$300<>"")*(COUNTIF($C$5:C11,$B$6:$B$300)=0),ROW($B$6:$B$300)-5),1))),"") -> 
B13: =IF(ПРОВЕРКА,IF(ISNA(MATCH(ЛИСТ.ИМЯ,$I$6:$I$13,0)),HYPERLINK(ЛИСТ.СПИСОК&"'!A1",ЛИСТ.ИМЯ),""),"") -> скв4 | C13: =IFERROR(HYPERLINK(MID(ЛИСТ.СПИСОК,1,SEARCH("'",ЛИСТ.СПИСОК)-1)&INDEX($B$6:$B$300,SMALL(IF(($B$6:$B$300<>"")*(COUNTIF($C$5:C12,$B$6:$B$300)=0),ROW($B$6:$B$300)-5),1))&"!A1",INDEX($B$6:$B$300,SMALL(IF(($B$6:$B$300<>"")*(COUNTIF($C$5:C12,$B$6:$B$300)=0),ROW($B$6:$B$300)-5),1))),"") -> 
B14: =IF(ПРОВЕРКА,IF(ISNA(MATCH(ЛИСТ.ИМЯ,$I$6:$I$13,0)),HYPERLINK(ЛИСТ.СПИСОК&"'!A1",ЛИСТ.ИМЯ),""),"") -> скв5 | C14: =IFERROR(HYPERLINK(MID(ЛИСТ.СПИСОК,1,SEARCH("'",ЛИСТ.СПИСОК)-1)&INDEX($B$6:$B$300,SMALL(IF(($B$6:$B$300<>"")*(COUNTIF($C$5:C13,$B$6:$B$300)=0),ROW($B$6:$B$300)-5),1))&"!A1",INDEX($B$6:$B$300,SMALL(IF(($B$6:$B$300<>"")*(COUNTIF($C$5:C13,$B$6:$B$300)=0),ROW($B$6:$B$300)-5),1))),"") -> 
B15: =IF(ПРОВЕРКА,IF(ISNA(MATCH(ЛИСТ.ИМЯ,$I$6:$I$13,0)),HYPERLINK(ЛИСТ.СПИСОК&"'!A1",ЛИСТ.ИМЯ),""),"") -> 1 | C15: =IFERROR(HYPERLINK(MID(ЛИСТ.СПИСОК,1,SEARCH("'",ЛИСТ.СПИСОК)-1)&INDEX($B$6:$B$300,SMALL(IF(($B$6:$B$300<>"")*(COUNTIF($C$5:C14,$B$6:$B$300)=0),ROW($B$6:$B$300)-5),1))&"!A1",INDEX($B$6:$B$300,SMALL(IF(($B$6:$B$300<>"")*(COUNTIF($C$5:C14,$B$6:$B$300)=0),ROW($B$6:$B$300)-5),1))),"") -> 
B16: =IF(ПРОВЕРКА,IF(ISNA(MATCH(ЛИСТ.ИМЯ,$I$6:$I$13,0)),HYPERLINK(ЛИСТ.СПИСОК&"'!A1",ЛИСТ.ИМЯ),""),"") ->  | C16: =IFERROR(HYPERLINK(MID(ЛИСТ.СПИСОК,1,SEARCH("'",ЛИСТ.СПИСОК)-1)&INDEX($B$6:$B$300,SMALL(IF(($B$6:$B$300<>"")*(COUNTIF($C$5:C15,$B$6:$B$300)=0),ROW($B$6:$B$300)-5),1))&"!A1",INDEX($B$6:$B$300,SMALL(IF(($B$6:$B$300<>"")*(COUNTIF($C$5:C15,$B$6:$B$300)=0),ROW($B$6:$B$300)-5),1))),"") -> 
B17: =IF(ПРОВЕРКА,IF(ISNA(MATCH(ЛИСТ.ИМЯ,$I$6:$I$13,0)),HYPERLINK(ЛИСТ.СПИСОК&"'!A1",ЛИСТ.ИМЯ),""),"") ->  | C17: =IFERROR(HYPERLINK(MID(ЛИСТ.СПИСОК,1,SEARCH("'",ЛИСТ.СПИСОК)-1)&INDEX($B$6:$B$300,SMALL(IF(($B$6:$B$300<>"")*(COUNTIF($C$5:C16,$B$6:$B$300)=0),ROW($B$6:$B$300)-5),1))&"!A1",INDEX($B$6:$B$300,SMALL(IF(($B$6:$B$300<>"")*(COUNTIF($C$5:C16,$B$6:$B$300)=0),ROW($B$6:$B$300)-5),1))),"") -> 
B18: =IF(ПРОВЕРКА,IF(ISNA(MATCH(ЛИСТ.ИМЯ,$I$6:$I$13,0)),HYPERLINK(ЛИСТ.СПИСОК&"'!A1",ЛИСТ.ИМЯ),""),"") ->  | C18: =IFERROR(HYPERLINK(MID(ЛИСТ.СПИСОК,1,SEARCH("'",ЛИСТ.СПИСОК)-1)&INDEX($B$6:$B$300,SMALL(IF(($B$6:$B$300<>"")*(COUNTIF($C$5:C17,$B$6:$B$300)=0),ROW($B$6:$B$300)-5),1))&"!A1",INDEX($B$6:$B$300,SMALL(IF(($B$6:$B$300<>"")*(COUNTIF($C$5:C17,$B$6:$B$300)=0),ROW($B$6:$B$300)-5),1))),"") -> 
B19: =IF(ПРОВЕРКА,IF(ISNA(MATCH(ЛИСТ.ИМЯ,$I$6:$I$13,0)),HYPERLINK(ЛИСТ.СПИСОК&"'!A1",ЛИСТ.ИМЯ),""),"") ->  | C19: =IFERROR(HYPERLINK(MID(ЛИСТ.СПИСОК,1,SEARCH("'",ЛИСТ.СПИСОК)-1)&INDEX($B$6:$B$300,SMALL(IF(($B$6:$B$300<>"")*(COUNTIF($C$5:C18,$B$6:$B$300)=0),ROW($B$6:$B$300)-5),1))&"!A1",INDEX($B$6:$B$300,SMALL(IF(($B$6:$B$300<>"")*(COUNTIF($C$5:C18,$B$6:$B$300)=0),ROW($B$6:$B$300)-5),1))),"") -> 
B20: =IF(ПРОВЕРКА,IF(ISNA(MATCH(ЛИСТ.ИМЯ,$I$6:$I$13,0)),HYPERLINK(ЛИСТ.СПИСОК&"'!A1",ЛИСТ.ИМЯ),""),"") ->  | C20: =IFERROR(HYPERLINK(MID(ЛИСТ.СПИСОК,1,SEARCH("'",ЛИСТ.СПИСОК)-1)&INDEX($B$6:$B$300,SMALL(IF(($B$6:$B$300<>"")*(COUNTIF($C$5:C19,$B$6:$B$300)=0),ROW($B$6:$B$300)-5),1))&"!A1",INDEX($B$6:$B$300,SMALL(IF(($B$6:$B$300<>"")*(COUNTIF($C$5:C19,$B$6:$B$300)=0),ROW($B$6:$B$300)-5),1))),"") -> 
B21: =IF(ПРОВЕРКА,IF(ISNA(MATCH(ЛИСТ.ИМЯ,$I$6:$I$13,0)),HYPERLINK(ЛИСТ.СПИСОК&"'!A1",ЛИСТ.ИМЯ),""),"") ->  | C21: =IFERROR(HYPERLINK(MID(ЛИСТ.СПИСОК,1,SEARCH("'",ЛИСТ.СПИСОК)-1)&INDEX($B$6:$B$300,SMALL(IF(($B$6:$B$300<>"")*(COUNTIF($C$5:C20,$B$6:$B$300)=0),ROW($B$6:$B$300)-5),1))&"!A1",INDEX($B$6:$B$300,SMALL(IF(($B$6:$B$300<>"")*(COUNTIF($C$5:C20,$B$6:$B$300)=0),ROW($B$6:$B$300)-5),1))),"") -> 
B22: =IF(ПРОВЕРКА,IF(ISNA(MATCH(ЛИСТ.ИМЯ,$I$6:$I$13,0)),HYPERLINK(ЛИСТ.СПИСОК&"'!A1",ЛИСТ.ИМЯ),""),"") ->  | C22: =IFERROR(HYPERLINK(MID(ЛИСТ.СПИСОК,1,SEARCH("'",ЛИСТ.СПИСОК)-1)&INDEX($B$6:$B$300,SMALL(IF(($B$6:$B$300<>"")*(COUNTIF($C$5:C21,$B$6:$B$300)=0),ROW($B$6:$B$300)-5),1))&"!A1",INDEX($B$6:$B$300,SMALL(IF(($B$6:$B$300<>"")*(COUNTIF($C$5:C21,$B$6:$B$300)=0),ROW($B$6:$B$300)-5),1))),"") -> 

Sheet Усл
B1: Талые грунты
B2: Почвенно-растительные отложения голоценового возраста, pd IV
A3: 1 | B3: Почвенно-растительный слой | C3: pd IV
B4: Техногенные отложения голоценового возраста, t IV
A5: 20-1 | B5: Насыпной грунт-песок коричневый мелкий, средней плотности, влажный | C5: t IV
B6: Озерно-болотные отложения голоценового возраста, lb IV
A7: 110-2 | B7: Торф темно-коричневый, сильноразложившийся, влажный, ниже УГВ - водонасыщенный. | C7: lb IV
A8: 130-2 | B8: Торф коричневый, слабо-, среднеразложившийся, влажный, ниже УГВ - водонасыщенный. | C8: lb IV
B9: Аллювиальные отложения позднеплейстоценового и голоценового возраста, aIII-IV
A10: 340-3 | B10: Cуглинок желто-коричневый, мягкопластичный, легкий, песчанистый, минеральный, с включением гравия и гальки до 5%, ожелезненный, с прослоями песка. | C10: aIII-IV
A11: 5423-3 | B11: Песок желто-коричневый, мелкий, средней плотности, влажный, ниже УГВ - насыщенный водой, минеральный, с включением гравия и гальки до 5%, ожелезненный | C11: aIII-IV
B12: Озерно-аллювиальные отложения позднеплейстоценового возраста, laIII
A13: 340а-4 | B13: Cуглинок коричневый, мягкопластичный, легкий, песчанистый, с примесью органического вещества, с включением гравия и гальки до 5%., ожелезненный | C13: laIII
A14: 5423а-4 | B14: Песок коричневато-серый, мелкий, средней плотности, влажный, ниже УГВ - насыщенный водой, с примесью органических веществ, с включением гравия и гальки до 5%,с прослоями суглинка, ожелезненный | C14: laIII
B15: Морские, ледниково-морские отложения среднеплейстоценового возраста, m.gm II
A16: 100-5 | B16: Торф коричневый, сильноразложившийся, влажный, ниже УГВ - водонасыщенный, погребенный | C16: m,gmII
A17: 5423-5 | B17: Песок серый, мелкий, средней плотности, влажный, ниже УГВ - насыщенный водой, минеральный, с включением гравия и гальки до 5%, с прослоями суглинка | C17: m,gmII
A18: 5523-5 | B18: Песок серый, пылеватый, средней плотности, влажный, ниже УГВ - насыщенный водой, минеральный, с включением гравия и гальки до 5%, с прослоями суглинка | C18: m,gmII
B20: Мерзлые грунты
A21: Лед | B21: Лед
B22: Озерно-болотные отложения голоценового возраста, lb IV
A23: 110м-2 | B23: Торф темнокоричневый, сильноразложившийся, пластичномерзлый, сильнольдистый (льдистость от 0.40 д.е. до 0.60 д.е.). Криотекстура атакситовая. | C23: lb IV
A24: 130м-2 | B24: Торф темнокоричневый, слабо-, среднеразложившийся, пластичномерзлый, сильнольдистый (льдистость от 0.40 д.е. до 0.60 д.е.). Криотекстура атакситовая. | C24: lb IV
B25: Аллювиальные отложения позднеплейстоценового и голоценового возраста, aIII-IV
A26: 5401м-3 | B26: Песок коричневый, мелкий, твердомерзлый, слабольдистый (льдистость до 0.40 д.е.), минеральный, незасоленный, с включением гравия и гальки до 5%, ожелезненный. Криотекстура массивная. | C26: aIII-IV
B27: Озерно-аллювиальные отложения позднеплейстоценового, laIII
A28: 5401ам-4 | B28: Песок коричневый, мелкий, твердомерзлый, слабольдистый (льдистость до 0.40 д.е.), с примесью органических веществ, незасоленный, с включением гравия и гальки до 5%, с прослоями суглинка, ожелезненный. Криотекстура массивная. | C28: laIII
A29: 5402ам-4 | B29: Песок коричневый, мелкий, твердомерзлый, льдистый (льдистость от 0.40 д.е. до 0.60 д.е.), с примесью органических веществ, незасоленный, с включением гравия и гальки до 5%, с прослоями суглинка, ожелезненный. Криотекстура массивная. | C29: laIII
A30: 5501ам-4 | B30: Песок коричневый, пылеватый, твердомерзлый, слабольдистый (льдистость до 0.40 д.е.), с примесью органических веществ,незасоленный, с включением гравия и гальки до 5%, с прослоями суглинка, ожелезненный. Криотекстура массивная. | C30: laIII
A31: 5503м-4 | B31: Песок коричневый, пылеватый, твердомерзлый, льдистый (льдистость от 0,40 до 0.60 д.е.), с примесью органических веществ, незасоленный, с включением гравия и гальки до 5%. с прослоями суглинка, ожелезненный. Криотекстура массивная. | C31: laIII
A32: 320ам-4 | B32: Cуглинок коричневый, твердомерзлый, слабольдистый (льдистость от 0.03 д.е. до 0.20 д.е.), легкий, песчанистый, с примесью органического вещества, незасоленный, включением гравия и гальки до 5%, ожелезненный. Криотекстура редко-, среднеослоистая, тонкошлировая (шлиры 1-10 мм через 10-200 мм). | C32: laIII
A33: 340ам-4 | B33: Cуглинок серовато-коричневый, твердомерзлый, льдистый (льдистость от 0.20 д.е. до 0.40 д.е.), легкий, песчанистый, с примесью органических веществ,с включением гравия и гальки до 5%,. ожелезненный. Криотекстура среднесетчатая, тонко- среднешлировая (шлиры 1-20 мм через 10-100 мм). | C33: laIII
A34: 350ам-4 | B34: Cуглинок серовато-коричневый, твердомерзлый, льдистый (льдистость от 0.20 д.е. до 0.40 д.е.), легкий, песчанистый, с примесью органических веществ, с включением гравия и гальки до 5%, ожелезненный. Криотекстура среднесетчатая, тонко- среднешлировая (шлиры 1-20 мм через 10-50 мм). | C34: laIII
A35: 410ам-4 | B35: Cупесь серовато-коричневая, твердомерзлая, слабольдистая (льдистость от 0.03 д.е. до 0.20 д.е.), песчанистая, с примесью органических веществ, незасоленная, с включением гравия и гальки до 5%, ожелезненная. Криотекстура массивная, крупно-, среднесетчатая, тонкошлировая (шлиры 1-20 мм через 10-100 мм). | C35: laIII
A36: 430ам-4 | B36: Cупесь серовато-коричневая, твердомерзлая, сильнольдистая (льдистость от 0.40 д.е. до 0.60 д.е.), песчанистая, с примесью органических веществ, незасоленная, с включением гравия и гальки до 5%, ожелезненная. Криотекстура средне-, мелкосетчатая, тонко- среднешлировая (шлиры 1-20 мм через | C36: laIII
A37: 240ам-4 | B37: Глина серая, твердомерзлая, льдистая (льдистость от 0.20 д.е. до 0.40 д.е.), легкая, песчанистая, с примесью органических веществ, незасоленная, с включением гравия и гальки до 5%, ожелезненная. Криотекстура среднеслоистая, тонко- среднешлировая (шлиры 1-20 мм через 10-100 мм). | C37: laIII
B38: Морские, ледниково-морские отложения среднеплейстоценового возраста, m.gm II
A39: 100м-5 | B39: Торф бурый, сильноразложившийся, пластичномерзлый, сильнольдистый (льдистость от 0.40 д.е. до 0.60 д.е.), погребенный. Криотекстура атакситовая. | C39: m,gmII
A40: 5401м-5 | B40: Песок серый, мелкий, твердомерзлый, слабольдистый (льдистость до 0.40 д.е.), минеральный, незасоленный, с включением гравия и гальки до 5%. Криотекстура массивная. | C40: m,gmII
A41: 5402м-5 | B41: Песок серый, мелкий, твердомерзлый, льдистый (льдистость от 0.40 д.е. до 0.60 д.е.), с включением гравия и гальки до 5%. Криотекстура массивная. | C41: m,gmII
A42: 5402ам-5 | B42: Песок серый, мелкий, твердомерзлый, слабольдистый (льдистость до 0.40 д.е.), с примесью органических веществ, незасоленный, с включением гравия и гальки до 5%. Криотекстура массивная. | C42: m,gmII
A43: 5411п-5 | B43: Песок серый, мелкий, пластичномерзлый, слабольдистый (льдистость до 0.40 д.е.), минеральный, слабозасоленный, с включением гравия и гальки до 5%. Криотекстура массивная. | C43: m,gmII
A44: 5501м-5 | B44: Песок серый, пылеватый, твердомерзлый, слабольдистый (льдистость до 0.40 д.е.), минеральный, незасоленный, с включением гравия и гальки до 5%. Криотекстура массивная. | C44: m,gmII
A45: 5301м-5 | B45: Песок серый, средней крупности, твердомерзлый, слабольдистый (льдистость до 0.40 д.е.), минеральный, незасоленный, с включением гравия и гальки до 5%. Криотекстура массивная. | C45: m,gmII
A46: 310м-5 | B46: Cуглинок темно-серый, твердомерзлый, нельдистый (льдистость менее 0.03 д.е.), легкий, песчанистый, минеральный, незасоленный, с включением гравия и гальки до 5%. Криотекстура редко-, среднеослоистая, тонкошлировая (шлиры 1-10 мм через 10-200 мм). | C46: m,gmII
A47: 310ам-5 | B47: Cуглинок темно-серый, твердомерзлый, нельдистый (льдистость менее 0.03 д.е.), легкий, песчанистый,с примесью органического вещества, с включением гравия и гальки до 5%. Криотекстура редко-, среднеослоистая, тонкошлировая (шлиры 1-10 мм через 10-200 мм). | C47: m,gmII
A48: 311ап-5 | B48: Cуглинок темно-серый, пластичномерзлый, нельдистый (льдистость менее 0.03 д.е.), легкий, песчанистый, с примесью органического вещества, слабозасоленный, с включением гравия и гальки до 5%. Криотекстура редко-, среднеослоистая, тонкошлировая (шлиры 1-10 мм через 10-200 мм). | C48: m,gmII
A49: 320м-5 | B49: Cуглинок темно-серый, твердомерзлый, слабольдистый (льдистость от 0.03 д.е. до 0.20 д.е.), легкий, песчанистый, минеральный, незасоленный, с включением гравия и гальки до 5%. Криотекстура редко-, среднеослоистая, тонкошлировая (шлиры 1-10 мм через 10-200 мм). | C49: m,gmII
A50: 320п-5 | B50: Cуглинок темно-серый, пластичномерзлый, слабольдистый (льдистость от 0.03 д.е. до 0.20 д.е.), легкий, песчанистый, минеральный, незасоленный, с включением гравия и гальки до 5%. Криотекстура редко-, среднеослоистая, тонкошлировая (шлиры 1-10 мм через 10-200 мм). | C50: m,gmII
A51: 320ам-5 | B51: Cуглинок темно-серый, твердомерзлый, слабольдистый (льдистость от 0.03 д.е. до 0.20 д.е.), легкий, песчанистый, с примесью органических веществ, незасоленный, с включением гравия и гальки до 5%. Криотекстура редко-, среднеослоистая, тонкошлировая (шлиры 1-10 мм через 10-200 мм). | C51: m,gmII
A52: 340м-5 | B52: Cуглинок серый, твердомерзлый, льдистый (льдистость от 0.20 д.е. до 0.40 д.е.), легкий, песчанистый, минеральный, незасоленный, с включением гравия и гальки до 5%. Криотекстура среднесетчатая, тонко- среднешлировая (шлиры 1-20 мм через 10-100 мм). | C52: m,gmII
A53: 340ам-5 | B53: Cуглинок темно-серый твердомерзлый, льдистый (льдистость от 0.20 д.е. до 0.40 д.е.), легкий, песчанистый, с примесью органических веществ, незасоленный, с включением гравия и гальки до 5%. Криотекстура среднесетчатая, тонко- среднешлировая (шлиры 1-20 мм через 10-100 мм). | C53: m,gmII
A54: 350м-5 | B54: Cуглинок серый, твердомерзлый, сильнольдистый (льдистость от 0.40 д.е. до 0.60 д.е.), легкий, песчанистый, минеральный, незасоленный, с включением гравия и гальки до 5%. Криотекстура средне-, мелкосетчатая, тонко-, среднешлировая (шлиры 1-20 мм через 1-50 мм). | C54: m,gmII
A55: 410м-5 | B55: Cупесь серая, твердомерзлая, слабольдистая (льдистость от 0.03 д.е. до 0.20 д.е.), песчанистая,минеральная, незасоленная, с включением гравия и гальки до 5%. Криотекстура массивная, крупно-, среднесетчатая, тонкошлировая (шлиры 1-20 мм через 10-100 мм). | C55: m,gmII
A56: 420ам-5 | B56: Cупесь серая, твердомерзлая, льдистая (льдистость от 0.20 д.е. до 0.40 д.е.), песчанистая, с примесью органических веществ, незасоленная, с включением гравия и гальки до 5%. Криотекстура массивная, крупно-, среднесетчатая, тонкошлировая (шлиры 1-20 мм через 10-100 мм). | C56: m,gmII
A57: 240ам-5 | B57: Глина серая, твердомерзлая, сильнольдистая (льдистость от 0.40 д.е. до 0.60 д.е.), легкая, песчанистая, минеральная, незасоленная, с включением гравия и гальки до 5%. Криотекстура среднеслоистая, тонко- среднешлировая (шлиры 1-20 мм через 1-50 мм). | C57: m,gmII

Sheet Кат
A1: № скв | B1: Абс,высота
A2: 1/8 | B2: 38.79
A3: 2/8 | B3: 38.93
A4: 3/8 | B4: 39.18
A5: 4/8 | B5: 39.4
A6: 5/8 | B6: 39.28
A7: 6/8 | B7: 38.67
A8: 7/8 | B8: 38.83
A9: 8/8 | B9: 39.29
A10: 9/8 | B10: 39.33
A11: 10/8 | B11: 39.19
A12: 11/8 | B12: 39.45
A13: 12/8 | B13: 39.69
A14: 13/8 | B14: 38.68
A15: 14/8 | B15: 39.17
A16: 15/8 | B16: 39.13
A17: 16/8 | B17: 38.56
A18: 17/8 | B18: 39.24
A19: 18/8 | B19: 38.72
A20: 19/8 | B20: 39.2
A21: 20/8 | B21: 39.37
A22: 21/8 | B22: 39.31
A23: 22/8 | B23: 40
A24: 23/8 | B24: 39.59
A25: 24/8 | B25: 38.69
A26: 25/8 | B26: 38.67
A27: 26/8 | B27: 39.95
A28: 27/8 | B28: 40.6
A29: 28/8 | B29: 40.44
A30: 29/8 | B30: 40.87
A31: 30/8 | B31: 41.34
A32: 31/8 | B32: 41.55
A33: 32/8 | B33: 41.55
A34: 33/8 | B34: 41.4
A35: 1/9 | B35: 37.36
A36: 2/9 | B36: 37.07
A37: 3/9 | B37: 37.62
A38: 4/9 | B38: 37.27
A39: 5/9 | B39: 37.56
A40: 6/9 | B40: 37.57
A41: 7/9 | B41: 38.04
A42: 8/9 | B42: 37.91
A43: 9/9 | B43: 37.96
A44: 10/9 | B44: 38.44
A45: 11/9 | B45: 38.37
A46: 12/9 | B46: 38.99
A47: 13/9 | B47: 38.93
A48: 14/9 | B48: 38.64
A49: 15/9 | B49: 38.59
A50: 16/9 | B50: 39.17
A51: 17/9 | B51: 39.26
A52: 18/9 | B52: 38.96
A53: 19/9 | B53: 38.83
A54: 20/9 | B54: 38.83
A55: 21/9 | B55: 38.85
A56: 22/9 | B56: 38.98
A57: 23/9 | B57: 39.02
A58: 24/9 | B58: 39
A59: 1/10 | B59: 36.86
A60: 2/10 | B60: 37.33
A61: 3/10 | B61: 37.36
A62: 4/10 | B62: 37.12
A63: 5/10 | B63: 37.36
A64: 6/10 | B64: 37.79
A65: 7/10 | B65: 37.62
A66: 8/10 | B66: 37.63
A67: 9/10 | B67: 38.19
A68: 10/10 | B68: 37.94
A69: 11/10 | B69: 37.59
A70: 12/10 | B70: 38.52
A71: 13/10 | B71: 38.03
A72: 14/10 | B72: 37.34
A73: 15/10 | B73: 37.04
A74: 16/10 | B74: 38.21
A75: 17/10 | B75: 37.95
A76: 18/10 | B76: 38.46
A77: 19/10 | B77: 37.75
A78: 20/10 | B78: 38.07
A79: 21/10 | B79: 38.09
A80: 1/11 | B80: 39.58
A81: 2/11 | B81: 39.8
A82: 3/11 | B82: 39.31
A83: 4/11 | B83: 39.96
A84: 5/11 | B84: 37.78
A85: 6/11 | B85: 38.59
A86: 7/11 | B86: 38.55
A87: 8/11 | B87: 39.3
A88: 9/11 | B88: 39.64
A89: 10/11 | B89: 37.91
A90: 11/11 | B90: 38.14
A91: 12/11 | B91: 38.56
A92: 13/11 | B92: 38.7
A93: 14/11 | B93: 39.33
A94: 15/11 | B94: 39.8
A95: 16/11 | B95: 38.04
A96: 17/11 | B96: 38.86
A97: 18/11 | B97: 39.21
A98: 19/11 | B98: 39.1
A99: 20/11 | B99: 39.49
A100: 21/11 | B100: 40.02
A101: 22/11 | B101: 39.38
A102: 1/15 | B102: 37.6
A103: 2/15 | B103: 37.54
A104: 3/15 | B104: 37.6
A105: 4/15 | B105: 38.2
A106: 5/15 | B106: 37.7
A107: 6/15 | B107: 37.35
A108: 7/15 | B108: 37.8
A109: 8/15 | B109: 38.01
A110: 9/15 | B110: 37.38
A111: 10/15 | B111: 37.77
A112: 11/15 | B112: 37.68
A113: 12/15 | B113: 37.68
A114: 13/15 | B114: 37.71
A115: 14/15 | B115: 37.52
A116: 15/15 | B116: 37.54
A117: 16/15 | B117: 37.62
A118: 17/15 | B118: 37.28
A119: 18/15 | B119: 36.83
A120: 19/15 | B120: 36.55
A121: 20/15 | B121: 36.68
A122: 21/15 | B122: 36.62
A123: 22/15 | B123: 36.1
A124: 23/15 | B124: 36.3
A125: 1/20 | B125: 36
A126: 2/20 | B126: 36.34
A127: 3/20 | B127: 36.69
A128: 4/20 | B128: 35.28
A129: 5/20 | B129: 36.72
A130: 6/20 | B130: 36.86
A131: 7/20 | B131: 36.56
A132: 8/20 | B132: 37.02
A133: 9/20 | B133: 36.78
A134: 10/20 | B134: 36.95
A135: 11/20 | B135: 36.89
A136: 12/20 | B136: 37.3
A137: 13/20 | B137: 37.22
A138: 14/20 | B138: 37.06
A139: 15/20 | B139: 37.16
A140: 16/20 | B140: 37.6
A141: 17/20 | B141: 37.42
A142: 18/20 | B142: 37.11
A143: 19/20 | B143: 36.39
A144: 20/20 | B144: 37.36
A145: 21/20 | B145: 37.34
A146: 22/20 | B146: 36.92
A147: 23/20 | B147: 35.9
A148: 24/20 | B148: 36.59
A149: 25/20 | B149: 36.11
A150: 1/21 | B150: 32.78
A151: 2/21 | B151: 33.79
A152: 3/21 | B152: 31.89
A153: 4/21 | B153: 33.49
A154: 5/21 | B154: 34.08
A155: 6/21 | B155: 33.05
A156: 7/21 | B156: 32.28
A157: 8/21 | B157: 31.23
A158: 9/21 | B158: 31.61
A159: 10/21 | B159: 32.88
A160: 11/21 | B160: 30.77
A161: 12/21 | B161: 31.5
A162: 13/21 | B162: 31.3
A163: 14/21 | B163: 30.69
A164: 15/21 | B164: 30.93
A165: 16/21 | B165: 31.38
A166: 17/21 | B166: 32.67
A167: 18/21 | B167: 27.15
A168: 19/21 | B168: 27.91
A169: 20/21 | B169: 28.29
A170: 21/21 | B170: 29.74
A171: 22/21 | B171: 30.44
A172: 23/21 | B172: 31.4
A173: 24/21 | B173: 32.18
A174: 25/21 | B174: 27.04
A175: 26/21 | B175: 29.01
A176: 27/21 | B176: 30.29
A177: 28/21 | B177: 31.73
A178: 29/21 | B178: 34.26
A179: 30/21 | B179: 33.02
A180: 1/22 | B180: 39.96
A181: 2/22 | B181: 39.55
A182: 3/22 | B182: 39.37
A183: 4/22 | B183: 39.23
A184: 5/22 | B184: 38.78
A185: 6/22 | B185: 40.11
A186: 7/22 | B186: 40.22
A187: 8/22 | B187: 39.97
A188: 9/22 | B188: 39.73
A189: 10/22 | B189: 39.45
A190: 11/22 | B190: 38.97
A191: 12/22 | B191: 38.8
A192: 13/22 | B192: 38.32
A193: 14/22 | B193: 40.26
A194: 15/22 | B194: 40.3
A195: 16/22 | B195: 39.78
A196: 17/22 | B196: 39.64
A197: 18/22 | B197: 38.83
A198: 19/22 | B198: 38.98
A199: 20/22 | B199: 38.4
A200: 21/22 | B200: 38.18
... 89 more rows

Sheet скв1
E1: Скважина | G1: № | H1: 1/10
A2: Расположение: куст 10
A4: Дата начала бурения: 31.03.14
A5: Дата окончания бурения: 31.03.2014 | H5: Абсолютная отметка | I5: =VLOOKUP(H1,Кат!A1:B677,2,FALSE) -> 36.86
H6: Общая глубина | I6: =SUM($E$10:$E$15) -> 17 | J6: м
A7: № слоя | B7: Геологический индекс | C7: Глубина слоя,м | E7: Мощность слоя,м | F7: Абс.отметка подошвы слоя,м | G7: ИГЭ | H7: Литологическое описание | I7: Глубина отбора образцов,м | K7: Грунтовые воды
C8: от | D8: до | K8: Уровень появления, м | L8: Уровень установления, м
I9: мон | J9: нар
A10: 1 | B10: =VLOOKUP($G10,Усл!$A$1:$C$851,3,FALSE) -> lb IV | C10: 0 | D10: 1.8 | E10: =D10 -> 1.8 | F10: =I5-D10 -> 35.06 | G10: 130м-2 | H10: =VLOOKUP(G10,Усл!$A$1:$B$851,2,FALSE) -> Торф темнокоричневый, слабо-, среднеразложившийся, пластичномерзлый, сильнольдистый (льдистость от 0.40 д.е. до 0.60 д.е.). Криотекстура атакситовая. | K10: Подземные воды не встречены
A11: 2 | B11: =VLOOKUP($G11,Усл!$A$1:$C$851,3,FALSE) -> laIII | C11: =D10 -> 1.8 | D11: 3.3 | E11: =D11-D10 -> 1.5 | F11: =F10-E11 -> 33.56 | G11: 5401ам-4 | H11: =VLOOKUP(G11,Усл!$A$1:$B$851,2,FALSE) -> Песок коричневый, мелкий, твердомерзлый, слабольдистый (льдистость до 0.40 д.е.), с примесью органических веществ, незасоленный, с включением гравия и гальки до 5%, с прослоями суглинка, ожелезненный. Криотекстура массивная.
A12: 3 | B12: =VLOOKUP($G12,Усл!$A$1:$C$851,3,FALSE) -> m,gmII | C12: =D11 -> 3.3 | D12: 4.2 | E12: =D12-D11 -> 0.9 | F12: =F11-E12 -> 32.66 | G12: 340м-5 | H12: =VLOOKUP(G12,Усл!$A$1:$B$851,2,FALSE) -> Cуглинок серый, твердомерзлый, льдистый (льдистость от 0.20 д.е. до 0.40 д.е.), легкий, песчанистый, минеральный, незасоленный, с включением гравия и гальки до 5%. Криотекстура среднесетчатая, тонко- среднешлировая (шлиры 1-20 мм через 10-100 мм).
A13: 4 | B13: =VLOOKUP($G13,Усл!$A$1:$C$851,3,FALSE) -> m,gmII | C13: =D12 -> 4.2 | D13: 6.4 | E13: =D13-D12 -> 2.2 | F13: =F12-E13 -> 30.46 | G13: 5401м-5 | H13: =VLOOKUP(G13,Усл!$A$1:$B$851,2,FALSE) -> Песок серый, мелкий, твердомерзлый, слабольдистый (льдистость до 0.40 д.е.), минеральный, незасоленный, с включением гравия и гальки до 5%. Криотекстура массивная.
A14: 5 | B14: =VLOOKUP($G14,Усл!$A$1:$C$851,3,FALSE) -> m,gmII | C14: =D13 -> 6.4 | D14: 7.7 | E14: =D14-D13 -> 1.3 | F14: =F13-E14 -> 29.16 | G14: 340м-5 | H14: =VLOOKUP(G14,Усл!$A$1:$B$851,2,FALSE) -> Cуглинок серый, твердомерзлый, льдистый (льдистость от 0.20 д.е. до 0.40 д.е.), легкий, песчанистый, минеральный, незасоленный, с включением гравия и гальки до 5%. Криотекстура среднесетчатая, тонко- среднешлировая (шлиры 1-20 мм через 10-100 мм).
A15: 6 | B15: =VLOOKUP($G15,Усл!$A$1:$C$851,3,FALSE) -> m,gmII | C15: =D14 -> 7.7 | D15: 17 | E15: =D15-D14 -> 9.3 | F15: =F14-E15 -> 19.86 | G15: 320м-5 | H15: =VLOOKUP(G15,Усл!$A$1:$B$851,2,FALSE) -> Cуглинок темно-серый, твердомерзлый, слабольдистый (льдистость от 0.03 д.е. до 0.20 д.е.), легкий, песчанистый, минеральный, незасоленный, с включением гравия и гальки до 5%. Криотекстура редко-, среднеослоистая, тонкошлировая (шлиры 1-10 мм через 10-200 мм).

Sheet скв2
E1: Скважина | G1: № | H1: 2/10
A2: Расположение: куст 12
A4: Дата начала бурения: 14.03.14
A5: Дата окончания бурения: 14.03.2014 | H5: Абсолютная отметка | I5: =VLOOKUP(H1,Кат!A1:B677,2,FALSE) -> 37.33
H6: Общая глубина | I6: =SUM($E$10:$E$13) -> 17 | J6: м
A7: № слоя | B7: Геологический индекс | C7: Глубина слоя,м | E7: Мощность слоя,м | F7: Абс.отметка подошвы слоя,м | G7: ИГЭ | H7: Литологическое описание | I7: Глубина отбора образцов,м | K7: Грунтовые воды
C8: от | D8: до | K8: Уровень появления, м | L8: Уровень установления, м
I9: мон | J9: нар
A10: 1 | B10: =VLOOKUP($G10,Усл!$A$1:$C$851,3,FALSE) -> lb IV | C10: 0 | D10: 0.3 | E10: =D10 -> 0.3 | F10: =I5-D10 -> 37.03 | G10: 130м-2 | H10: =VLOOKUP(G10,Усл!$A$1:$B$851,2,FALSE) -> Торф темнокоричневый, слабо-, среднеразложившийся, пластичномерзлый, сильнольдистый (льдистость от 0.40 д.е. до 0.60 д.е.). Криотекстура атакситовая. | K10: Подземные воды не встречены
A11: 2 | B11: =VLOOKUP($G11,Усл!$A$1:$C$851,3,FALSE) -> laIII | C11: =D10 -> 0.3 | D11: 2.2 | E11: =D11-D10 -> 1.9 | F11: =F10-E11 -> 35.13 | G11: 5401ам-4 | H11: =VLOOKUP(G11,Усл!$A$1:$B$851,2,FALSE) -> Песок коричневый, мелкий, твердомерзлый, слабольдистый (льдистость до 0.40 д.е.), с примесью органических веществ, незасоленный, с включением гравия и гальки до 5%, с прослоями суглинка, ожелезненный. Криотекстура массивная.
A12: 3 | B12: =VLOOKUP($G12,Усл!$A$1:$C$851,3,FALSE) -> m,gmII | C12: =D11 -> 2.2 | D12: 5.4 | E12: =D12-D11 -> 3.2 | F12: =F11-E12 -> 31.93 | G12: 340м-5 | H12: =VLOOKUP(G12,Усл!$A$1:$B$851,2,FALSE) -> Cуглинок серый, твердомерзлый, льдистый (льдистость от 0.20 д.е. до 0.40 д.е.), легкий, песчанистый, минеральный, незасоленный, с включением гравия и гальки до 5%. Криотекстура среднесетчатая, тонко- среднешлировая (шлиры 1-20 мм через 10-100 мм).
A13: 4 | B13: =VLOOKUP($G13,Усл!$A$1:$C$851,3,FALSE) -> m,gmII | C13: =D12 -> 5.4 | D13: 17 | E13: =D13-D12 -> 11.6 | F13: =F12-E13 -> 20.33 | G13: 320м-5 | H13: =VLOOKUP(G13,Усл!$A$1:$B$851,2,FALSE) -> Cуглинок темно-серый, твердомерзлый, слабольдистый (льдистость от 0.03 д.е. до 0.20 д.е.), легкий, песчанистый, минеральный, незасоленный, с включением гравия и гальки до 5%. Криотекстура редко-, среднеослоистая, тонкошлировая (шлиры 1-10 мм через 10-200 мм).

Sheet скв3
E1: Скважина | G1: № | H1: 3/10
A2: Расположение: куст 10
A4: Дата начала бурения: 31.03.14
A5: Дата окончания бурения: 31.03.2014 | H5: Абсолютная отметка | I5: =VLOOKUP(H1,Кат!A1:B677,2,FALSE) -> 37.36
H6: Общая глубина | I6: =SUM($E$10:$E$14) -> 17 | J6: м
A7: № слоя | B7: Геологический индекс | C7: Глубина слоя,м | E7: Мощность слоя,м | F7: Абс.отметка подошвы слоя,м | G7: ИГЭ | H7: Литологическое описание | I7: Глубина отбора образцов,м | K7: Грунтовые воды
C8: от | D8: до | K8: Уровень появления, м | L8: Уровень установления, м
I9: мон | J9: нар
A10: 1 | B10: =VLOOKUP($G10,Усл!$A$1:$C$851,3,FALSE) -> lb IV | C10: 0 | D10: 0.5 | E10: =D10 -> 0.5 | F10: =I5-D10 -> 36.86 | G10: 130м-2 | H10: =VLOOKUP(G10,Усл!$A$1:$B$851,2,FALSE) -> Торф темнокоричневый, слабо-, среднеразложившийся, пластичномерзлый, сильнольдистый (льдистость от 0.40 д.е. до 0.60 д.е.). Криотекстура атакситовая. | K10: Подземные воды не встречены
A11: 2 | B11: =VLOOKUP($G11,Усл!$A$1:$C$851,3,FALSE) -> laIII | C11: =D10 -> 0.5 | D11: 1.3 | E11: =D11-D10 -> 0.8 | F11: =F10-E11 -> 36.06 | G11: 5401ам-4 | H11: =VLOOKUP(G11,Усл!$A$1:$B$851,2,FALSE) -> Песок коричневый, мелкий, твердомерзлый, слабольдистый (льдистость до 0.40 д.е.), с примесью органических веществ, незасоленный, с включением гравия и гальки до 5%, с прослоями суглинка, ожелезненный. Криотекстура массивная.
A12: 3 | B12: =VLOOKUP($G12,Усл!$A$1:$C$851,3,FALSE) -> m,gmII | C12: =D11 -> 1.3 | D12: 2.5 | E12: =D12-D11 -> 1.2 | F12: =F11-E12 -> 34.86 | G12: 320м-5 | H12: =VLOOKUP(G12,Усл!$A$1:$B$851,2,FALSE) -> Cуглинок темно-серый, твердомерзлый, слабольдистый (льдистость от 0.03 д.е. до 0.20 д.е.), легкий, песчанистый, минеральный, незасоленный, с включением гравия и гальки до 5%. Криотекстура редко-, среднеослоистая, тонкошлировая (шлиры 1-10 мм через 10-200 мм).
A13: 4 | B13: =VLOOKUP($G13,Усл!$A$1:$C$851,3,FALSE) -> m,gmII | C13: =D12 -> 2.5 | D13: 7.2 | E13: =D13-D12 -> 4.7 | F13: =F12-E13 -> 30.16 | G13: 340м-5 | H13: =VLOOKUP(G13,Усл!$A$1:$B$851,2,FALSE) -> Cуглинок серый, твердомерзлый, льдистый (льдистость от 0.20 д.е. до 0.40 д.е.), легкий, песчанистый, минеральный, незасоленный, с включением гравия и гальки до 5%. Криотекстура среднесетчатая, тонко- среднешлировая (шлиры 1-20 мм через 10-100 мм).
A14: 5 | B14: =VLOOKUP($G14,Усл!$A$1:$C$851,3,FALSE) -> m,gmII | C14: =D13 -> 7.2 | D14: 17 | E14: =D14-D13 -> 9.8 | F14: =F13-E14 -> 20.36 | G14: 320м-5 | H14: =VLOOKUP(G14,Усл!$A$1:$B$851,2,FALSE) -> Cуглинок темно-серый, твердомерзлый, слабольдистый (льдистость от 0.03 д.е. до 0.20 д.е.), легкий, песчанистый, минеральный, незасоленный, с включением гравия и гальки до 5%. Криотекстура редко-, среднеослоистая, тонкошлировая (шлиры 1-10 мм через 10-200 мм).

Sheet скв4
E1: Скважина | G1: № | H1: 4/10
A2: Расположение: куст 10
A4: Дата начала бурения: 31.03.14
A5: Дата окончания бурения: 31.03.2014 | H5: Абсолютная отметка | I5: =VLOOKUP(H1,Кат!A1:B677,2,FALSE) -> 37.12
H6: Общая глубина | I6: =SUM($E$10:$E$14) -> 6.6 | J6: м
A7: № слоя | B7: Геологический индекс | C7: Глубина слоя,м | E7: Мощность слоя,м | F7: Абс.отметка подошвы слоя,м | G7: ИГЭ | H7: Литологическое описание | I7: Глубина отбора образцов,м | K7: Грунтовые воды
C8: от | D8: до | K8: Уровень появления, м | L8: Уровень установления, м
I9: мон | J9: нар
A10: 1 | B10: =VLOOKUP($G10,Усл!$A$1:$C$851,3,FALSE) -> lb IV | C10: 0 | D10: 1.6 | E10: =D10 -> 1.6 | F10: =I5-D10 -> 35.52 | G10: 130м-2 | H10: =VLOOKUP(G10,Усл!$A$1:$B$851,2,FALSE) -> Торф темнокоричневый, слабо-, среднеразложившийся, пластичномерзлый, сильнольдистый (льдистость от 0.40 д.е. до 0.60 д.е.). Криотекстура атакситовая. | K10: Подземные воды не встречены
A11: 2 | B11: =VLOOKUP($G11,Усл!$A$1:$C$851,3,FALSE) -> laIII | C11: =D10 -> 1.6 | D11: 2.8 | E11: =D11-D10 -> 1.2 | F11: =F10-E11 -> 34.32 | G11: 5401ам-4 | H11: =VLOOKUP(G11,Усл!$A$1:$B$851,2,FALSE) -> Песок коричневый, мелкий, твердомерзлый, слабольдистый (льдистость до 0.40 д.е.), с примесью органических веществ, незасоленный, с включением гравия и гальки до 5%, с прослоями суглинка, ожелезненный. Криотекстура массивная.
A12: 3 | B12: =VLOOKUP($G12,Усл!$A$1:$C$851,3,FALSE) -> m,gmII | C12: =D11 -> 2.8 | D12: 3.6 | E12: =D12-D11 -> 0.8 | F12: =F11-E12 -> 33.52 | G12: 350м-5 | H12: =VLOOKUP(G12,Усл!$A$1:$B$851,2,FALSE) -> Cуглинок серый, твердомерзлый, сильнольдистый (льдистость от 0.40 д.е. до 0.60 д.е.), легкий, песчанистый, минеральный, незасоленный, с включением гравия и гальки до 5%. Криотекстура средне-, мелкосетчатая, тонко-, среднешлировая (шлиры 1-20 мм через 1-50 мм).
A13: 4 | B13: =VLOOKUP($G13,Усл!$A$1:$C$851,3,FALSE) -> m,gmII | C13: =D12 -> 3.6 | D13: 5.4 | E13: =D13-D12 -> 1.8 | F13: =F12-E13 -> 31.72 | G13: 5401м-5 | H13: =VLOOKUP(G13,Усл!$A$1:$B$851,2,FALSE) -> Песок серый, мелкий, твердомерзлый, слабольдистый (льдистость до 0.40 д.е.), минеральный, незасоленный, с включением гравия и гальки до 5%. Криотекстура массивная.
A14: 5 | B14: =VLOOKUP($G14,Усл!$A$1:$C$851,3,FALSE) -> m,gmII | C14: =D13 -> 5.4 | D14: 6.6 | E14: =D14-D13 -> 1.2 | F14: =F13-E14 -> 30.52 | G14: 340м-5 | H14: =VLOOKUP(G14,Усл!$A$1:$B$851,2,FALSE) -> Cуглинок серый, твердомерзлый, льдистый (льдистость от 0.20 д.е. до 0.40 д.е.), легкий, песчанистый, минеральный, незасоленный, с включением гравия и гальки до 5%. Криотекстура среднесетчатая, тонко- среднешлировая (шлиры 1-20 мм через 10-100 мм).
A15: 6 | B15: =VLOOKUP($G15,Усл!$A$1:$C$851,3,FALSE) -> m,gmII | C15: =D14 -> 6.6 | D15: 17 | E15: =D15-D14 -> 10.4 | F15: =F14-E15 -> 20.12 | G15: 320м-5 | H15: =VLOOKUP(G15,Усл!$A$1:$B$851,2,FALSE) -> Cуглинок темно-серый, твердомерзлый, слабольдистый (льдистость от 0.03 д.е. до 0.20 д.е.), легкий, песчанистый, минеральный, незасоленный, с включением гравия и гальки до 5%. Криотекстура редко-, среднеослоистая, тонкошлировая (шлиры 1-10 мм через 10-200 мм).

Sheet скв5
E1: Скважина | G1: № | H1: 5/10
A2: Расположение: куст 10
A4: Дата начала бурения: 31.03.14
A5: Дата окончания бурения: 31.03.2014 | H5: Абсолютная отметка | I5: =VLOOKUP(H1,Кат!A1:B677,2,FALSE) -> 37.36
H6: Общая глубина | I6: =SUM($E$10:$E$14) -> 6.1 | J6: м
A7: № слоя | B7: Геологический индекс | C7: Глубина слоя,м | E7: Мощность слоя,м | F7: Абс.отметка подошвы слоя,м | G7: ИГЭ | H7: Литологическое описание | I7: Глубина отбора образцов,м | K7: Грунтовые воды
C8: от | D8: до | K8: Уровень появления, м | L8: Уровень установления, м
I9: мон | J9: нар
A10: 1 | B10: =VLOOKUP($G10,Усл!$A$1:$C$851,3,FALSE) -> lb IV | C10: 0 | D10: 0.5 | E10: =D10 -> 0.5 | F10: =I5-E10 ->  | G10: 130м-2 | H10: =VLOOKUP(G10,Усл!$A$1:$B$851,2,FALSE) -> Торф темнокоричневый, слабо-, среднеразложившийся, пластичномерзлый, сильнольдистый (льдистость от 0.40 д.е. до 0.60 д.е.). Криотекстура атакситовая. | K10: Подземные воды не встречены
A11: 2 | B11: =VLOOKUP($G11,Усл!$A$1:$C$851,3,FALSE) -> laIII | C11: =D10 -> 0.5 | D11: 1.9 | E11: =D11-D10 -> 1.4 | F11: =F10-E11 ->  | G11: 5401ам-4 | H11: =VLOOKUP(G11,Усл!$A$1:$B$851,2,FALSE) -> Песок коричневый, мелкий, твердомерзлый, слабольдистый (льдистость до 0.40 д.е.), с примесью органических веществ, незасоленный, с включением гравия и гальки до 5%, с прослоями суглинка, ожелезненный. Криотекстура массивная.
A12: 3 | B12: =VLOOKUP($G12,Усл!$A$1:$C$851,3,FALSE) -> m,gmII | C12: =D11 -> 1.9 | D12: 2.5 | E12: =D12-D11 -> 0.6 | F12: =F11-E12 ->  | G12: 340м-5 | H12: =VLOOKUP(G12,Усл!$A$1:$B$851,2,FALSE) -> Cуглинок серый, твердомерзлый, льдистый (льдистость от 0.20 д.е. до 0.40 д.е.), легкий, песчанистый, минеральный, незасоленный, с включением гравия и гальки до 5%. Криотекстура среднесетчатая, тонко- среднешлировая (шлиры 1-20 мм через 10-100 мм).
A13: 4 | B13: =VLOOKUP($G13,Усл!$A$1:$C$851,3,FALSE) -> m,gmII | C13: =D12 -> 2.5 | D13: 4.9 | E13: =D13-D12 -> 2.4 | F13: =F12-E13 ->  | G13: 5401м-5 | H13: =VLOOKUP(G13,Усл!$A$1:$B$851,2,FALSE) -> Песок серый, мелкий, твердомерзлый, слабольдистый (льдистость до 0.40 д.е.), минеральный, незасоленный, с включением гравия и гальки до 5%. Криотекстура массивная.
A14: 5 | B14: =VLOOKUP($G14,Усл!$A$1:$C$851,3,FALSE) -> m,gmII | C14: =D13 -> 4.9 | D14: 6.1 | E14: =D14-D13 -> 1.2 | F14: =F13-E14 ->  | G14: 340м-5 | H14: =VLOOKUP(G14,Усл!$A$1:$B$851,2,FALSE) -> Cуглинок серый, твердомерзлый, льдистый (льдистость от 0.20 д.е. до 0.40 д.е.), легкий, песчанистый, минеральный, незасоленный, с включением гравия и гальки до 5%. Криотекстура среднесетчатая, тонко- среднешлировая (шлиры 1-20 мм через 10-100 мм).
A15: 6 | B15: =VLOOKUP($G15,Усл!$A$1:$C$851,3,FALSE) -> m,gmII | C15: =D14 -> 6.1 | D15: 17 | E15: =D15-D14 -> 10.9 | F15: =F14-E15 ->  | G15: 320м-5 | H15: =VLOOKUP(G15,Усл!$A$1:$B$851,2,FALSE) -> Cуглинок темно-серый, твердомерзлый, слабольдистый (льдистость от 0.03 д.е. до 0.20 д.е.), легкий, песчанистый, минеральный, незасоленный, с включением гравия и гальки до 5%. Криотекстура редко-, среднеослоистая, тонкошлировая (шлиры 1-10 мм через 10-200 мм).

Sheet 1
E1: Скважина | G1: № | H1: 6/10
A2: Расположение: куст 10
A4: Дата начала бурения: 22.03.14
A5: Дата окончания бурения: 22.03.2014 | H5: Абсолютная отметка | I5: =VLOOKUP(H1,Кат!A1:B677,2,FALSE) -> 37.79
H6: Общая глубина | I6: =SUM($E$10:$E$14) -> 17 | J6: м
A7: № слоя | B7: Геологический индекс | C7: Глубина слоя,м | E7: Мощность слоя,м | F7: Абс.отметка подошвы слоя,м | G7: ИГЭ | H7: Литологическое описание | I7: Глубина отбора образцов,м | K7: Грунтовые воды
C8: от | D8: до | K8: Уровень появления, м | L8: Уровень установления, м
I9: мон | J9: нар
A10: 1 | B10: =VLOOKUP($G10,Усл!$A$1:$C$851,3,FALSE) -> lb IV | C10: 0 | D10: 0.6 | E10: =D10 -> 0.6 | F10: =F9-E10 -> -0.6 | G10: 110м-2 | H10: =VLOOKUP(G10,Усл!$A$1:$B$851,2,FALSE) -> Торф темнокоричневый, сильноразложившийся, пластичномерзлый, сильнольдистый (льдистость от 0.40 д.е. до 0.60 д.е.). Криотекстура атакситовая. | K10: Подземные воды не встречены
A11: 2 | B11: =VLOOKUP($G11,Усл!$A$1:$C$851,3,FALSE) -> laIII | C11: =D10 -> 0.6 | D11: 2.8 | E11: =D11-D10 -> 2.2 | F11: =F10-E11 -> -2.8 | G11: 5401ам-4 | H11: =VLOOKUP(G11,Усл!$A$1:$B$851,2,FALSE) -> Песок коричневый, мелкий, твердомерзлый, слабольдистый (льдистость до 0.40 д.е.), с примесью органических веществ, незасоленный, с включением гравия и гальки до 5%, с прослоями суглинка, ожелезненный. Криотекстура массивная.
A12: 3 | B12: =VLOOKUP($G12,Усл!$A$1:$C$851,3,FALSE) -> m,gmII | C12: =D11 -> 2.8 | D12: 6.5 | E12: =D12-D11 -> 3.7 | F12: =F11-E12 -> -6.5 | G12: 350м-5 | H12: =VLOOKUP(G12,Усл!$A$1:$B$851,2,FALSE) -> Cуглинок серый, твердомерзлый, сильнольдистый (льдистость от 0.40 д.е. до 0.60 д.е.), легкий, песчанистый, минеральный, незасоленный, с включением гравия и гальки до 5%. Криотекстура средне-, мелкосетчатая, тонко-, среднешлировая (шлиры 1-20 мм через 1-50 мм).
A13: 4 | B13: =VLOOKUP($G13,Усл!$A$1:$C$851,3,FALSE) -> m,gmII | C13: =D12 -> 6.5 | D13: 12.5 | E13: =D13-D12 -> 6 | F13: =F12-E13 -> -12.5 | G13: 340м-5 | H13: =VLOOKUP(G13,Усл!$A$1:$B$851,2,FALSE) -> Cуглинок серый, твердомерзлый, льдистый (льдистость от 0.20 д.е. до 0.40 д.е.), легкий, песчанистый, минеральный, незасоленный, с включением гравия и гальки до 5%. Криотекстура среднесетчатая, тонко- среднешлировая (шлиры 1-20 мм через 10-100 мм).
A14: 5 | B14: =VLOOKUP($G14,Усл!$A$1:$C$851,3,FALSE) -> m,gmII | C14: =D13 -> 12.5 | D14: 17 | E14: =D14-D13 -> 4.5 | F14: =F13-E14 -> -17 | G14: 320м-5 | H14: =VLOOKUP(G14,Усл!$A$1:$B$851,2,FALSE) -> Cуглинок темно-серый, твердомерзлый, слабольдистый (льдистость от 0.03 д.е. до 0.20 д.е.), легкий, песчанистый, минеральный, незасоленный, с включением гравия и гальки до 5%. Криотекстура редко-, среднеослоистая, тонкошлировая (шлиры 1-10 мм через 10-200 мм).
